bitfinex/quotes_ETHUSD_20250602
["timestamp","ask_amount","ask_price","bid_price","bid_amount"]
[1748850479281,0.8065,2505.8,2505.4,2.39482142]
[1748850479681,0.8065,2505.8,2505.5,2.39471475]
[1748850479885,0.8065,2505.8,2505.5,2.39467068]
[1748850480604,0.8065,2505.8,2505.3,2.39490867]
[1748850480605,0.8065,2505.8,2505.4,2.39478101]
[1748850481398,0.8065,2505.8,2505.3,2.39490106]
[1748850481600,0.8091,2506.1,2505.6,2.39457525]
[1748850481788,1.92412905,2506.1,2505.6,2.39457525]
[1748850481994,4.31837486,2506.1,2505.3,2.39492276]
[1748850482229,4.31833115,2506.1,2505.2,0.8234]
[1748850482512,4.31833115,2506.1,2505.5,2.39464291]
[1748850482714,4.07603428,2506.0,2505.5,2.39464291]
[1748850482879,1.6817767,2506.0,2505.6,2.39463213]
[1748850483076,1.6817767,2506.0,2505.5,2.39469058]
[1748850483312,9.6817767,2506.0,2505.4,2.39478912]
[1748850483610,9.6817767,2506.0,2505.5,2.39470991]
[1748850483611,0.8061,2505.9,2505.5,2.39470991]
[1748850483981,2.20581134,2505.9,2505.5,2.39470991]
[1748850484182,2.20581134,2505.9,2505.4,2.39477775]
[1748850485096,2.20581134,2505.9,2505.5,2.39473059]
[1748850485298,2.20581134,2505.9,2505.6,2.39461249]
[1748850485709,0.8061,2505.9,2505.6,2.39461249]
[1748850485885,0.8026,2506.1,2505.7,2.39444974]
[1748850486282,0.8026,2506.1,2505.8,2.39444014]
[1748850486511,0.8026,2506.1,2505.7,2.39449325]
[1748850487021,0.8026,2506.1,2505.8,2.39443757]
[1748850487254,1.57220101,2506.1,2505.8,2.39443757]
[1748850487391,3.22452231,2506.0,2505.5,2.39468089]
[1748850487985,3.22452231,2506.0,2505.3,2.39486854]
[1748850488189,2.39441549,2505.9,2505.4,2.39482361]
[1748850488417,0.31834155,2505.8,2505.4,2.39482361]
[1748850488630,0.31834155,2505.8,2505.1,4.9292]
[1748850488631,3.18330095,2506.0,2505.5,2.39473029]
[1748850488804,0.789,2506.0,2505.5,2.39473029]
[1748850489021,4.89,2506.0,2505.7,2.39454044]
[1748850489191,4.89,2506.0,2505.6,2.39458898]
[1748850489386,4.89,2506.0,2505.6,2.39463601]
[1748850490149,0.789,2506.0,2505.7,2.39451481]
[1748850490303,0.789,2506.0,2505.6,2.39460243]
[1748850490508,0.789,2506.0,2505.5,3.17800453]
[1748850490705,0.789,2506.0,2505.5,2.39470453]
[1748850491056,0.789,2506.0,2505.6,2.39458814]
[1748850491190,0.789,2506.0,2505.5,2.39468333]
[1748850491385,0.789,2506.0,2505.5,2.39472573]
[1748850491386,3.18330119,2506.0,2505.5,2.39472573]
[1748850491636,7.28476153,2505.9,2505.1,0.8036]
[1748850491790,2.39459601,2505.7,2505.1,3.19864913]
[1748850491995,3.17746947,2505.6,2505.1,2.40504913]
[1748850492437,3.17746947,2505.6,2505.1,0.01]
[1748850492438,0.7828,2505.5,2505.1,0.01]
[1748850492596,2.39488556,2505.4,2505.1,0.01]
[1748850492791,0.31776856,2505.3,2505.1,0.01]
[1748850493252,3.22401836,2505.2,2505.1,0.01]
[1748850493750,0.829,2505.2,2505.1,0.01]
[1748850493890,3.22401836,2505.2,2505.1,0.01]
[1748850494547,15.29991836,2505.2,2505.1,0.01]
[1748850494705,17.82965644,2505.2,2505.1,0.01]
[1748850498045,18.90065644,2505.2,2505.1,0.01]
[1748850503145,19.45065644,2505.2,2505.1,0.01]
[1748850506659,19.45065644,2505.2,2504.1,0.01]
[1748850506985,10.39595593,2504.3,2504.1,0.01]
[1748850507481,2.39597476,2504.2,2504.1,0.01]
[1748850508246,2.78882049,2504.2,2504.1,0.01]
[1748850509458,0.39284573,2504.2,2504.1,0.01]
[1748850509673,9.35889717,2504.3,2504.1,0.01]
[1748850509862,3.2118393,2504.6,2504.1,0.8124]
[1748850510055,8.35876153,2504.9,2504.1,0.8124]
[1748850510056,0.7898,2504.9,2504.1,0.8124]
[1748850510283,2.39560228,2504.6,2504.1,3.20842662]
[1748850510651,2.39552434,2504.7,2504.1,3.20842662]
[1748850510880,2.78924838,2504.7,2504.1,3.20842662]
[1748850511216,2.78922932,2504.7,2504.1,3.2084533]
[1748850511419,1.31846403,2504.6,2504.1,3.2084533]
[1748850511560,8.0,2504.5,2504.1,3.20846632]
[1748850511893,8.0,2504.5,2504.1,0.8124]
[1748850512188,0.84876715,2504.4,2504.1,0.01]
[1748850512383,0.8075,2504.4,2504.1,0.01]
[1748850512560,2.05966603,2504.4,2504.1,0.01]
[1748850512985,4.45546958,2504.4,2504.1,0.01]
[1748850513362,2.05966603,2504.4,2504.1,0.01]
[1748850513702,1.25216603,2504.4,2504.1,0.01]
[1748850513902,8.0,2504.5,2504.1,0.01]
[1748850514199,2.39593226,2504.3,2504.1,0.01]
[1748850514394,8.0,2504.4,2504.1,0.01]
[1748850514395,2.39583644,2504.4,2504.1,0.01]
[1748850515909,2.09356403,2504.6,2504.2,2.39596955]
[1748850516059,5.42046403,2504.6,2504.2,3.16696955]
[1748850516267,7.8161044,2504.6,2504.2,0.771]
[1748850516494,1.96794095,2504.5,2504.2,0.771]
[1748850516965,1.96794095,2504.5,2504.2,3.16696716]
[1748850517300,1.31846403,2504.6,2504.2,3.16696458]
[1748850517684,1.31846403,2504.6,2504.2,0.771]
[1748850518004,0.39372404,2504.7,2504.3,2.39580116]
[1748850518314,2.39541045,2504.8,2504.2,3.16692246]
[1748850518602,10.39535297,2504.9,2504.3,2.39585939]
[1748850518777,8.0,2504.9,2504.4,2.39574799]
[1748850519116,11.6228534,2504.9,2504.4,2.39574799]
[1748850519411,11.6228534,2504.9,2504.2,3.16694789]
[1748850519412,2.39540654,2504.8,2504.2,3.16694323]
[1748850519715,2.78911424,2504.8,2504.2,3.16694323]
[1748850519864,2.78911424,2504.8,2504.3,2.39587295]
[1748850520568,0.3937077,2504.8,2504.4,2.39578024]
[1748850520766,18.90763249,2504.9,2504.4,2.39578024]
[1748850520967,1.97992219,2504.8,2504.3,2.39583224]
[1748850521806,4.37533356,2504.8,2504.3,2.39583224]
[1748850523078,4.37533356,2504.8,2504.2,3.16692722]
[1748850523390,4.37533356,2504.8,2504.3,2.39586302]
[1748850524710,4.7711174,2504.8,2504.3,2.39586302]
[1748850525001,2.37570603,2504.8,2504.4,2.39574624]
[1748850525662,0.39578384,2504.8,2504.5,2.39567291]
[1748850525866,8.0,2505.1,2504.4,0.7858]
[1748850526111,0.39537083,2505.3,2504.6,3.15489211]
[1748850526325,3.46873314,2505.5,2505.0,2.39512428]
[1748850526495,3.46873314,2505.5,2504.9,2.39525722]
[1748850526496,8.42444331,2505.4,2504.9,2.39525722]
[1748850527005,0.42444331,2505.4,2505.0,2.39520027]
[1748850527208,8.0,2505.3,2504.8,0.7593]
[1748850527430,8.42444331,2505.4,2504.8,0.7593]
[1748850527709,8.42444331,2505.4,2504.9,2.3952459]
[1748850528021,8.42444331,2505.4,2505.0,2.39520337]
[1748850528189,1.53988717,2505.3,2505.0,2.39520337]
[1748850528526,1.53988717,2505.3,2504.9,2.3952677]
[1748850529932,8.42444331,2505.4,2505.0,2.39518902]
[1748850530125,8.83206968,2505.4,2505.0,2.39518902]
[1748850530479,8.83206968,2505.4,2504.9,2.39527045]
[1748850531642,11.22691489,2505.4,2504.9,2.39527045]
[1748850531804,8.83206968,2505.4,2504.9,2.39527045]
[1748850532218,8.83206968,2505.4,2504.8,0.7593]
[1748850532536,0.99060697,2505.3,2504.8,3.15464392]
[1748850533652,0.8295,2505.2,2504.7,2.3954809]
[1748850534002,0.8295,2505.2,2504.8,2.39538168]
[1748850535202,0.99060697,2505.3,2504.8,2.39538168]
[1748850537250,3.38553689,2505.3,2504.8,2.39538168]
[1748850537542,1.30042066,2505.2,2504.8,2.39538168]
[1748850538320,1.30042066,2505.2,2504.7,2.39544907]
[1748850538597,1.30042066,2505.2,2504.7,2.39549646]
[1748850538797,1.30042066,2505.2,2504.6,0.8289]
[1748850539001,2.395167,2505.1,2504.6,3.2244349]
[1748850539202,1.40905885,2505.1,2504.6,3.2244349]
[1748850539533,8.0,2505.2,2504.8,2.39535444]
[1748850539908,0.42444331,2505.4,2505.0,0.8187]
[1748850540210,3.15016838,2505.7,2505.2,2.39499118]
[1748850540425,0.7556,2505.7,2505.2,2.39501836]
[1748850540630,3.1501516,2505.7,2505.1,2.39507829]
[1748850540937,2.70967838,2505.6,2505.1,2.39511116]
[1748850541502,2.39480106,2505.5,2505.0,0.8187]
[1748850541729,2.39517013,2505.1,2504.5,2.3956449]
[1748850541919,11.16975291,2505.3,2504.4,4.093]
[1748850541920,8.7748,2505.3,2504.4,4.093]
[1748850542120,11.16978226,2505.3,2504.7,2.39543131]
[1748850542313,1.8461883,2505.2,2504.7,2.39543131]
[1748850543005,4.24123158,2505.2,2504.6,2.39557485]
[1748850543254,4.24123158,2505.2,2504.7,2.3954787]
[1748850543744,0.7748,2505.3,2504.9,2.39522722]
[1748850544153,0.7748,2505.3,2504.8,2.39535228]
[1748850546521,2.39503967,2505.2,2504.7,3.20855117]
[1748850546725,8.7748,2505.3,2504.7,3.20855117]
[1748850547250,11.16977886,2505.3,2504.7,3.20855117]
[1748850547544,12.93544573,2505.3,2504.8,2.39539487]
[1748850547928,0.7919,2505.5,2504.9,0.8146]
[1748850548325,0.7919,2505.5,2505.0,2.39514106]
[1748850549532,0.71468947,2505.6,2505.1,2.39503408]
[1748850550148,8.71468947,2505.6,2505.1,2.39503408]
[1748850550336,0.71468947,2505.6,2505.1,2.39503408]
[1748850550532,0.7555,2506.0,2505.0,7.27920958]
[1748850550717,8.7555,2506.0,2505.0,7.27920958]
[1748850550924,8.0,2505.9,2505.4,2.39478394]
[1748850551124,0.7555,2506.0,2505.6,2.3946042]
[1748850551351,1.22207062,2505.9,2505.6,2.3946042]
[1748850551659,1.22207062,2505.9,2505.5,2.39467967]
[1748850551834,2.39435498,2505.9,2505.4,0.79]
[1748850552041,2.39449246,2505.8,2505.3,2.39488932]
[1748850552838,10.39439612,2505.9,2505.3,2.39488932]
[1748850554026,2.39445925,2505.8,2505.3,2.39488932]
[1748850554223,2.39445925,2505.8,2504.9,0.7825]
[1748850554224,3.50517506,2505.6,2504.9,0.7825]
[1748850554422,3.50517506,2505.4,2505.0,2.39520128]
[1748850554635,3.50517506,2505.4,2505.1,2.39509044]
[1748850555140,5.89985457,2505.6,2505.1,2.39509044]
[1748850555461,4.58338564,2505.6,2505.1,2.39509044]
[1748850555626,2.43600041,2505.5,2505.0,2.39515407]
[1748850555828,0.04126715,2505.5,2505.0,2.39515407]
[1748850556158,6.97802706,2505.6,2505.1,2.39509171]
[1748850556376,4.58338564,2505.6,2505.1,2.39509171]
[1748850556976,0.04126715,2505.5,2505.0,2.39519539]
[1748850557163,2.43600241,2505.5,2505.0,2.39519539]
[1748850557365,4.58338564,2505.6,2505.1,2.39509031]
[1748850557966,0.04126715,2505.5,2505.0,2.39517545]
[1748850558167,2.39493803,2505.3,2504.8,2.39536691]
[1748850558342,4.29787506,2505.4,2505.0,2.3951206]
[1748850558746,4.29787506,2505.4,2505.1,2.39510149]
[1748850558967,0.78020124,2505.5,2504.9,0.03991913]
[1748850559143,4.29787506,2505.6,2505.2,2.3949445]
[1748850559488,6.45350427,2505.6,2505.2,2.3949445]
[1748850560011,6.45350427,2505.6,2505.3,2.394863]
[1748850560148,0.7927,2505.6,2505.3,2.394863]
[1748850560349,6.69251994,2505.6,2504.7,5.5094]
[1748850560579,6.69255381,2505.6,2505.1,2.39510202]
[1748850561177,4.29787506,2505.6,2505.1,2.39510202]
[1748850561383,0.6692464,2505.5,2505.1,2.39510202]
[1748850562647,0.6692464,2505.5,2505.2,2.39501358]
[1748850563451,0.6692464,2505.5,2505.1,2.39508898]
[1748850564195,0.7927,2505.6,2505.4,2.39475075]
[1748850564360,0.7927,2505.6,2505.5,2.39473159]
[1748850564548,2.47224106,2505.8,2505.4,2.39475166]
[1748850565077,3.50517506,2506.2,2505.2,4.095]
[1748850565379,0.7642,2506.1,2505.4,0.7922]
[1748850565697,8.7642,2506.1,2505.8,2.39438428]
[1748850566001,8.7642,2506.1,2505.5,2.3947012]
[1748850566328,8.7642,2506.1,2505.6,2.39457095]
[1748850566647,8.7642,2506.1,2505.7,2.39454044]
[1748850567286,10.23053819,2506.1,2505.7,2.39454044]
[1748850568496,8.7642,2506.1,2505.8,2.39443814]
[1748850569810,0.7642,2506.1,2505.4,3.1869878]
[1748850569948,0.8119,2506.4,2506.0,2.39425379]
[1748850570304,8.8119,2506.4,2506.0,2.39425379]
[1748850570455,0.8119,2506.4,2506.0,2.39425379]
[1748850570800,8.8119,2506.4,2506.0,2.39425379]
[1748850570975,8.8119,2506.4,2506.1,2.39413385]
[1748850571151,8.0,2506.6,2506.1,2.3941052]
[1748850571375,8.8288,2506.6,2506.1,2.3941052]
[1748850571820,8.8288,2506.6,2506.2,2.39404384]
[1748850572901,11.22248727,2506.6,2505.9,3.20032944]
[1748850573216,8.8288,2506.6,2506.1,2.39410735]
[1748850573383,10.68686418,2506.6,2506.1,2.39410735]
[1748850573717,5.89895124,2506.5,2505.9,0.806]
[1748850574020,6.67675254,2506.1,2505.5,0.8014]
[1748850574317,3.50517506,2505.9,2505.4,2.39477227]
[1748850574701,5.8995453,2505.9,2505.4,2.39480574]
[1748850575017,2.39454134,2505.7,2505.2,2.3949746]
[1748850575216,0.832,2505.7,2505.2,6.4909746]
[1748850575516,0.832,2505.7,2505.2,6.49100242]
[1748850575679,0.832,2505.7,2505.3,2.39482817]
[1748850576241,0.832,2505.7,2505.4,2.39482449]
[1748850577283,0.832,2505.7,2505.5,2.39472863]
[1748850579516,4.28417506,2505.9,2505.5,2.39472863]
[1748850579812,6.2283807,2505.9,2505.5,2.39472863]
[1748850580014,0.779,2505.9,2505.6,2.39462056]
[1748850580308,8.0,2506.0,2505.7,2.39447751]
[1748850580910,0.8194,2506.3,2505.9,2.39429449]
[1748850581413,6.71854364,2506.3,2505.8,2.39440566]
[1748850581785,4.32457506,2506.3,2505.9,2.39434838]
[1748850582111,0.8194,2506.3,2506.0,2.39420504]
[1748850582414,0.8194,2506.3,2506.0,2.39423122]
[1748850582625,8.0,2506.4,2505.9,2.39434321]
[1748850583114,8.0,2506.4,2506.0,2.39420162]
[1748850583287,10.06024623,2506.4,2506.0,2.39420162]
[1748850583793,12.45414019,2506.4,2505.9,2.39430391]
[1748850583993,3.50517506,2506.1,2505.7,2.39453194]
[1748850584181,4.27587506,2506.3,2505.8,2.39438565]
[1748850584382,4.27587506,2506.3,2505.5,4.093]
[1748850584581,4.27587506,2506.3,2505.9,2.39430171]
[1748850584782,6.35837885,2506.3,2505.9,2.39430171]
[1748850584982,6.35837885,2506.3,2505.9,2.39427768]
[1748850585587,6.35837885,2506.3,2505.8,2.39438078]
[1748850586201,6.35837885,2506.3,2505.9,2.3943318]
[1748850588243,6.35837885,2506.3,2505.8,2.3944363]
[1748850588244,6.35837885,2506.3,2505.8,2.39442808]
[1748850588405,6.35837885,2506.3,2505.9,2.39430528]
[1748850588605,6.35837885,2506.3,2506.0,2.39423508]
[1748850590149,0.7707,2506.3,2506.1,2.39415361]
[1748850590341,0.8044,2506.6,2506.1,2.39415361]
[1748850590659,3.50517506,2506.5,2506.1,2.39415361]
[1748850591507,3.50517506,2506.5,2505.9,2.39432085]
[1748850591508,3.50517506,2506.5,2506.0,2.39421434]
[1748850591827,5.62416066,2506.5,2506.0,2.39421434]
[1748850592746,8.0,2506.4,2506.0,2.39421434]
[1748850593250,8.0,2506.4,2505.9,4.093]
[1748850593453,8.0,2506.4,2506.0,2.39423854]
[1748850594358,8.0,2506.4,2505.9,4.093]
[1748850594524,8.0,2506.4,2506.0,2.39424573]
[1748850594724,9.68223872,2506.4,2506.0,2.39423702]
[1748850595052,9.68223872,2506.4,2506.0,2.39423221]
[1748850595861,8.0,2506.4,2506.0,2.39423221]
[1748850596208,0.8044,2506.6,2505.9,4.093]
[1748850596421,8.8044,2506.6,2506.0,2.39425379]
[1748850596715,8.8044,2506.6,2506.1,2.3940648]
[1748850597141,12.70844159,2506.6,2506.1,2.3940648]
[1748850599359,3.50517506,2506.5,2506.1,2.3940648]
[1748850600317,3.50517506,2506.5,2506.0,2.39425218]
[1748850600657,8.8044,2506.6,2506.2,2.39403735]
[1748850600861,0.8044,2506.6,2505.9,6.48731096]
[1748850601061,0.8044,2506.6,2506.3,2.39390847]
[1748850601228,0.8044,2506.6,2506.4,2.39387055]
[1748850601438,13.90863259,2506.9,2506.4,2.39387055]
[1748850601439,0.8274,2506.8,2506.4,2.39387055]
[1748850601957,1.21943248,2506.8,2506.4,2.39387055]
[1748850602311,0.8274,2506.8,2506.3,2.39389687]
[1748850602517,0.01,2506.9,2506.2,2.39406272]
[1748850602815,0.01,2506.9,2506.5,2.39372853]
[1748850603015,3.51517506,2506.9,2506.4,2.3938342]
[1748850603763,3.51517506,2506.9,2506.5,2.39376492]
[1748850604256,0.01,2506.9,2506.6,2.39368068]
[1748850604413,0.01,2506.9,2506.7,2.39355182]
[1748850604614,0.01,2506.9,2506.6,2.39364059]
[1748850605217,0.01,2506.9,2506.5,2.39372876]
[1748850605218,3.51517506,2506.9,2506.5,2.39372876]
[1748850605417,0.8238,2506.6,2506.1,4.086]
[1748850605743,0.8238,2506.6,2506.3,2.39390418]
[1748850606116,0.8126,2506.8,2506.5,2.39375059]
[1748850606326,0.8126,2506.8,2506.4,2.39385939]
[1748850606327,0.8126,2506.8,2506.6,2.39361919]
[1748850606515,0.01,2506.9,2506.6,2.39361919]
[1748850607051,0.01,2506.9,2506.7,2.39358041]
[1748850607444,0.01,2506.9,2506.6,2.39364621]
[1748850607752,3.51517506,2506.9,2506.4,2.39379113]
[1748850608251,5.22661204,2506.9,2506.2,0.8196]
[1748850608420,5.22661204,2506.9,2506.3,6.4799672]
[1748850608621,3.51517506,2506.9,2506.5,2.39376443]
[1748850611270,5.94984168,2506.9,2506.4,2.39384017]
[1748850611429,3.51517506,2506.9,2506.5,2.39376225]
[1748850611629,0.7943,2506.8,2506.4,2.39386101]
[1748850612353,2.26458708,2506.8,2506.4,2.39386101]
[1748850612986,5.9400274,2506.7,2506.0,3.18998974]
[1748850613140,3.50517506,2506.5,2505.8,0.7958]
[1748850613327,3.50517506,2506.5,2505.8,3.19022464]
[1748850613527,0.7943,2506.6,2506.4,2.39387168]
[1748850613865,2.26458708,2506.8,2506.5,2.39377618]
[1748850614742,0.7943,2506.8,2506.5,2.39377618]
[1748850615269,0.7943,2506.8,2506.6,2.39366305]
[1748850615438,0.01,2506.9,2506.6,2.39366305]
[1748850616062,0.01,2506.9,2506.6,2.39365029]
[1748850617850,0.01,2506.9,2506.3,4.091]
[1748850618265,0.01,2506.9,2506.3,6.48496278]
[1748850618578,0.01,2506.9,2506.4,2.39387168]
[1748850618741,0.7841,2506.5,2506.0,0.7825]
[1748850619134,7.59717506,2506.8,2506.4,2.39385621]
[1748850619334,0.7841,2506.7,2506.4,2.39385621]
[1748850620244,0.7841,2506.7,2506.5,2.39374262]
[1748850620638,0.7841,2506.7,2506.4,2.39383578]
[1748850620839,0.7841,2506.7,2506.5,2.39376565]
[1748850621033,0.7841,2506.7,2506.4,2.39384615]
[1748850621346,0.7841,2506.7,2506.3,2.39394948]
[1748850621546,3.17768914,2506.7,2506.0,0.7825]
[1748850621729,3.17768914,2506.7,2506.2,2.3940013]
[1748850621934,0.7841,2506.7,2506.3,2.39396706]
[1748850622354,0.7841,2506.7,2506.3,2.39391737]
[1748850624478,0.7841,2506.7,2506.4,2.39386999]
[1748850627466,0.7841,2506.7,2506.3,2.3938775]
[1748850627782,5.33359813,2506.7,2506.1,2.39413647]
[1748850628085,5.33359813,2506.7,2506.2,2.77591894]
[1748850628271,5.33359813,2506.7,2506.3,2.39396705]
[1748850628668,5.33359813,2506.7,2506.2,2.39402038]
[1748850628858,5.33359813,2506.7,2506.1,2.39413269]
[1748850629062,5.33359813,2506.7,2506.2,0.3819834]
[1748850629387,5.33359813,2506.7,2506.1,2.39413269]
[1748850629692,4.28927506,2506.7,2506.4,2.39384685]
[1748850629991,4.28927506,2506.7,2506.5,2.39370118]
[1748850629992,0.7841,2506.7,2506.5,2.39370118]
[1748850630159,4.9177,2506.9,2506.5,2.39377618]
[1748850631087,7.31109707,2506.9,2506.4,2.39382158]
[1748850631397,6.73027213,2506.9,2506.4,2.39382158]
[1748850631539,1.47302721,2506.8,2506.4,2.39382158]
[1748850633248,5.89896036,2506.5,2505.9,2.39434933]
[1748850633569,0.776,2506.4,2506.0,0.38216343]
[1748850633872,0.776,2506.4,2506.1,0.38216343]
[1748850634246,3.50517506,2506.3,2505.9,2.39434223]
[1748850634747,3.50517506,2506.3,2506.0,2.39423156]
[1748850635284,1.44349844,2506.4,2506.0,2.39423156]
[1748850636061,1.44349844,2506.4,2506.2,2.39406016]
[1748850636264,0.776,2506.4,2506.2,2.39406016]
[1748850636583,0.7884,2506.7,2506.5,2.39370299]
[1748850636798,0.01,2506.9,2506.7,2.39356757]
[1748850637158,0.01,2506.9,2506.8,2.3934897]
[1748850638052,0.01,2506.9,2506.8,2.77505596]
[1748850639469,0.01,2506.9,2506.8,2.77477758]
[1748850640693,0.01,2506.9,2506.8,2.77463481]
[1748850641999,0.01,2506.9,2506.8,7.61220987]
[1748850643062,0.01,2506.9,2506.8,12.76920987]
[1748850643467,0.01,2506.9,2506.8,12.77020987]
[1748850643884,0.01,2506.9,2506.8,9.26503481]
[1748850644107,0.01,2506.9,2506.8,12.77020987]
[1748850644609,0.01,2506.9,2506.8,11.70103588]
[1748850645305,0.01,2506.9,2506.8,7.61103588]
[1748850645607,0.01,2506.9,2506.8,11.70003588]
[1748850646306,0.01,2506.9,2506.8,7.61103588]
[1748850646543,0.01,2506.9,2506.8,11.69903588]
[1748850649043,0.01,2506.9,2506.8,11.69847993]
[1748850652647,0.01,2506.9,2506.8,11.69815403]
[1748850653488,0.01,2506.9,2506.8,11.69810991]
[1748850658004,0.01,2506.9,2506.8,11.69798221]
[1748850658203,0.01,2506.9,2506.8,11.69398221]
[1748850659222,0.01,2506.9,2506.8,8.30480715]
[1748850659421,0.01,2506.9,2506.8,12.38880715]
[1748850659734,0.01,2506.9,2506.8,12.5598897]
[1748850660331,0.01,2506.9,2506.8,12.93914833]
[1748850660930,0.01,2506.9,2506.8,11.2274897]
[1748850662434,0.01,2506.9,2506.8,12.9556383]
[1748850662824,0.01,2506.9,2506.8,12.95561282]
[1748850664128,0.01,2506.9,2506.8,13.42989173]
[1748850665012,0.01,2506.9,2506.8,13.05083921]
[1748850665198,0.01,2506.9,2506.8,12.95590931]
[1748850666741,0.01,2506.9,2506.8,20.95590931]
[1748850667450,0.02,2507.9,2507.8,2.94253528]
[1748850667609,0.02,2507.9,2507.8,15.65042995]
[1748850668145,0.02,2507.9,2507.8,16.12586293]
[1748850669448,0.02,2507.9,2507.8,16.12595483]
[1748850669743,0.02,2507.9,2507.8,11.38595483]
[1748850669919,0.02,2507.9,2507.8,12.21205483]
[1748850670319,0.02,2507.9,2507.8,11.736919]
[1748850672242,0.02,2507.9,2507.2,2.86817761]
[1748850672243,0.8087,2507.8,2507.2,2.86817761]
[1748850672556,0.8087,2507.6,2506.8,0.47513583]
[1748850672722,4.31387506,2507.6,2507.2,2.39307856]
[1748850673254,0.8149,2507.4,2506.6,2.86875983]
[1748850673477,0.8149,2507.4,2506.3,0.7823]
[1748850673478,3.50517506,2507.2,2506.8,2.39347861]
[1748850673634,3.50517506,2507.2,2506.8,2.39341873]
[1748850674512,3.50517506,2507.2,2506.6,2.39365702]
[1748850674945,0.7633,2507.1,2506.8,2.39348186]
[1748850675215,1.4294559,2507.1,2506.8,2.39348386]
[1748850675429,0.7633,2507.1,2506.7,2.39349012]
[1748850675624,0.7633,2507.1,2506.8,2.39346561]
[1748850676067,0.7633,2507.1,2506.5,0.55]
[1748850676272,0.7633,2507.1,2507.0,2.39329876]
[1748850677875,0.8008,2507.7,2507.5,2.39276967]
[1748850678016,0.8008,2507.7,2507.4,2.39291216]
[1748850679061,0.02,2507.9,2507.8,2.39253528]
[1748850679354,0.02,2507.9,2507.8,7.42408228]
[1748850681873,0.02,2507.9,2507.8,7.42339285]
[1748850682643,0.02,2507.9,2507.8,8.19609285]
[1748850683568,0.02,2507.9,2507.8,3.84339285]
[1748850683777,0.02,2507.9,2507.8,7.94339285]
[1748850684691,0.02,2507.9,2507.8,8.49339285]
[1748850686250,0.02,2507.9,2507.8,8.49299644]
[1748850689281,0.02,2507.9,2507.8,13.23299644]
[1748850690800,0.02,2507.9,2507.8,13.23289878]
[1748850691300,0.02,2507.9,2507.8,13.23300475]
[1748850694220,0.02,2507.9,2507.8,20.51428064]
[1748850694396,0.02,2507.9,2507.8,21.30918064]
[1748850695219,0.02,2507.9,2507.8,21.3092375]
[1748850696624,0.02,2507.9,2507.8,20.93071117]
[1748850696832,0.02,2507.9,2507.8,21.30926195]
[1748850696980,0.02,2507.9,2507.8,16.13726195]
[1748850697323,0.02,2507.9,2507.8,13.22108606]
[1748850698401,0.02,2507.9,2507.8,20.50236195]
[1748850699550,0.02,2507.9,2507.8,20.50221952]
[1748850700422,0.02,2507.9,2507.8,29.76202996]
[1748850700637,0.02,2507.9,2507.8,29.28901952]
[1748850703322,0.02,2507.9,2507.8,24.12901952]
[1748850703528,0.02,2507.9,2507.8,29.28901952]
[1748850707129,0.8176,2508.9,2508.4,0.55]
[1748850707453,0.8176,2508.9,2508.3,7.28127589]
[1748850707454,0.8176,2508.9,2508.8,2.39158163]
[1748850708418,0.8176,2508.9,2508.8,2.77134159]
[1748850710666,0.8176,2508.9,2508.8,8.04134159]
[1748850710667,0.02,2508.9,2508.8,8.04134159]
[1748850710845,0.02,2508.9,2508.8,8.51543753]
[1748850711046,0.02,2508.9,2508.8,8.04134159]
[1748850711248,0.02,2508.9,2508.8,11.93657091]
[1748850711449,0.02,2508.9,2508.8,12.41076302]
[1748850711839,0.02,2508.9,2508.8,8.04134159]
[1748850712170,0.02,2508.9,2508.8,8.51554845]
[1748850712329,0.02,2508.9,2508.8,13.67254845]
[1748850712524,0.02,2508.9,2508.8,8.51554845]
[1748850712767,0.02,2508.9,2508.8,12.12981825]
[1748850713081,0.02,2508.9,2508.8,12.60386402]
[1748850713235,0.02,2508.9,2508.8,12.12981825]
[1748850713448,0.02,2508.9,2508.8,11.57881825]
[1748850714276,0.02,2508.9,2508.8,7.49081825]
[1748850715001,0.02,2508.9,2508.8,8.04081825]
[1748850716452,0.02,2508.9,2508.8,7.49081825]
[1748850716652,0.02,2508.9,2508.8,7.11158163]
[1748850716857,0.02,2508.9,2508.8,7.49073602]
[1748850719450,0.02,2508.9,2508.8,11.57473602]
[1748850719856,0.02,2508.9,2508.8,7.49073602]
[1748850720087,0.02,2508.9,2508.8,11.57373602]
[1748850720986,0.02,2508.9,2508.8,11.57401779]
[1748850721794,0.02,2508.9,2508.8,6.85401779]
[1748850723395,0.02,2508.9,2508.8,2.77101779]
[1748850723590,0.02,2508.9,2508.8,6.85201779]
[1748850725808,0.02,2508.9,2508.8,2.77101779]
[1748850728505,0.02,2508.9,2508.8,2.77137463]
[1748850732682,0.02,2508.9,2508.8,2.77178749]
[1748850737087,0.02,2508.9,2508.8,2.77192242]
[1748850741428,0.02,2508.9,2508.8,2.39158163]
[1748850741597,0.02,2508.9,2508.8,2.77201326]
[1748850742429,0.02,2508.9,2508.8,7.40301326]
[1748850742929,0.02,2508.9,2508.8,3.32201326]
[1748850743226,0.02,2508.9,2508.8,2.77201326]
[1748850743532,0.02,2508.9,2508.8,6.85301326]
[1748850743729,0.02,2508.9,2508.8,2.77201326]
[1748850743898,0.02,2508.9,2508.8,6.85301326]
[1748850744093,0.02,2508.9,2508.8,2.77201326]
[1748850744319,0.02,2508.9,2508.8,6.85301326]
[1748850744702,0.7852,2508.9,2508.8,0.38043163]
[1748850744907,0.7652,2508.8,2508.3,2.39199863]
[1748850745628,0.8032,2508.5,2508.0,2.39225473]
[1748850745829,0.8032,2508.3,2507.7,2.39260138]
[1748850746007,0.8032,2508.3,2507.9,2.39241966]
[1748850746395,0.8032,2508.3,2507.8,2.39253154]
[1748850746396,0.8032,2508.3,2508.0,2.39233388]
[1748850746716,0.7562,2508.2,2508.0,2.39233388]
[1748850747115,0.7562,2508.2,2508.1,2.39224911]
[1748850747625,0.7562,2508.2,2508.0,2.39230371]
[1748850748226,0.7562,2508.2,2508.1,2.39224911]
[1748850749435,0.7562,2508.2,2507.4,4.72]
[1748850749610,0.7555,2508.1,2507.7,2.39257101]
[1748850750523,0.7555,2508.1,2507.8,2.3924746]
[1748850750722,0.7555,2508.1,2507.4,8.802]